bitfinex/quotes_BTCUSD_20250123
["timestamp","ask_amount","ask_price","bid_price","bid_amount"]
[1737644923911,0.05030409,104030.0,103960.0,0.192378]
[1737644923912,0.103046,104020.0,103960.0,0.192378]
[1737644924135,0.103046,104020.0,103810.0,0.01968988]
[1737644924136,0.19231,104000.0,103930.0,0.192429]
[1737644924337,0.02,103990.0,103830.0,0.97153839]
[1737644924538,0.00030409,104030.0,103990.0,0.096163]
[1737644924539,0.05,104000.0,103990.0,0.096163]
[1737644924759,0.00030409,104030.0,104020.0,0.096135]
[1737644924967,0.00030409,104030.0,103920.0,0.05]
[1737644924968,0.00601714,104070.0,104050.0,0.192214]
[1737644925123,0.10210914,104070.0,103990.0,0.05]
[1737644925339,0.038463,104080.0,104030.0,0.05]
[1737644925508,0.038463,104080.0,103980.0,0.05]
[1737644925509,0.057699,104000.0,103980.0,0.05]
[1737644925711,0.212206,104060.0,103990.0,0.038523]
[1737644925913,0.212206,104060.0,103960.0,0.05]
[1737644925914,0.038472,104080.0,103970.0,0.038523]
[1737644926132,0.192159,104080.0,103980.0,0.05]
[1737644926341,0.192203,104060.0,103990.0,0.115509]
[1737644926512,0.038519,104090.0,103990.0,0.05]
[1737644926693,0.096122,104040.0,103860.0,0.3]
[1737644926900,0.05,104060.0,104010.0,0.19228]
[1737644927097,0.038467,104080.0,103970.0,0.96857839]
[1737644927293,0.00029925,104020.0,103910.0,0.97153839]
[1737644927554,0.05,104060.0,103920.0,0.576461]
[1737644927788,6e-05,104090.0,103970.0,0.3]
[1737644927988,6e-05,104090.0,103980.0,0.115509]
[1737644928163,6e-05,104090.0,104020.0,0.19227]
[1737644928365,6e-05,104090.0,103930.0,0.3]
[1737644928366,0.038453,104110.0,104060.0,0.192196]
[1737644928577,0.03195989,104130.0,104050.0,0.1922]
[1737644928784,0.03195989,104130.0,103940.0,1.38995368]
[1737644928785,0.212132,104100.0,103940.0,1.38995368]
[1737644928982,0.05,104060.0,103990.0,0.192314]
[1737644929129,0.02,104090.0,103940.0,0.41841529]
[1737644929329,0.192147,104090.0,104030.0,0.192246]
[1737644929532,0.192147,104090.0,103940.0,1.38995368]
[1737644929533,0.192162,104080.0,104020.0,0.192255]
[1737644929731,0.22403489,104130.0,103960.0,0.192381]
[1737644929732,0.096114,104050.0,103960.0,0.192381]
[1737644929932,0.096131,104030.0,103970.0,0.00048871]
[1737644930131,0.192197,104060.0,103970.0,0.00048871]
[1737644930334,0.02,104050.0,103980.0,0.096165]
[1737644930539,0.02,104080.0,104000.0,0.096146]
[1737644930759,0.212201,104060.0,104000.0,0.096145]
[1737644930982,0.02,104050.0,103970.0,0.09666471]
[1737644931287,0.03195989,104130.0,103980.0,0.41841529]
[1737644931656,0.03195989,104130.0,104040.0,0.192217]
[1737644931805,0.05195989,104130.0,103990.0,0.192326]
[1737644932009,0.03195989,104130.0,104060.0,1.5]
[1737644932215,0.05195989,104130.0,104070.0,0.192174]
[1737644932379,0.03195989,104130.0,104000.0,0.97153839]
[1737644932575,0.192132,104100.0,104010.0,0.192273]
[1737644932820,0.212138,104100.0,104030.0,0.384487]
[1737644932970,0.02,104080.0,104000.0,0.001508]
[1737644933176,0.192252,104030.0,104000.0,0.001508]
[1737644933377,0.02,104040.0,104000.0,0.001508]
[1737644933591,0.096144,104010.0,104000.0,3.2e-07]
[1737644933795,0.02,103980.0,103950.0,0.00048871]
[1737644933997,0.192363,103970.0,103950.0,0.00048871]
[1737644934202,0.02,103990.0,103900.0,0.192477]
[1737644934406,0.04879593,104030.0,103870.0,0.192548]
[1737644934407,0.02,103950.0,103870.0,0.192548]
[1737644934609,0.02,103950.0,103880.0,0.66]
[1737644934610,0.192418,103940.0,103880.0,0.66]
[1737644934834,0.192418,103940.0,103810.0,0.43804217]
[1737644934835,0.02,103890.0,103810.0,1.692645]
[1737644935038,0.192506,103900.0,103790.0,0.192692]
[1737644935039,0.192499,103900.0,103790.0,0.192692]
[1737644935316,0.192499,103900.0,103730.0,0.97153839]
[1737644935317,0.096281,103870.0,103850.0,0.0001443]
[1737644935513,0.096283,103860.0,103850.0,0.0001443]
[1737644935918,0.192548,103870.0,103850.0,0.0001443]
[1737644936091,0.02,103890.0,103850.0,0.0001443]
[1737644936268,0.11625,103900.0,103870.0,0.00048871]
[1737644936471,0.192474,103910.0,103850.0,0.0001443]
[1737644936671,0.02,103900.0,103850.0,0.0001443]
[1737644936992,0.096283,103860.0,103850.0,3e-07]
[1737644937571,0.096329,103810.0,103730.0,0.096402]
[1737644937771,0.096329,103810.0,103740.0,0.09639]
[1737644937982,0.353026,103810.0,103720.0,0.038546]
[1737644938175,0.260975,103810.0,103710.0,0.02]
[1737644938398,0.096376,103760.0,103750.0,0.02]
[1737644938923,0.02,103780.0,103670.0,1.5]
[1737644939177,0.212885,103690.0,103660.0,6e-05]
[1737644939366,0.02,103690.0,103670.0,0.48204]
[1737644939581,0.09645,103680.0,103670.0,0.48204]
[1737644939807,0.02,103700.0,103670.0,0.48204]
[1737644939999,0.09645,103680.0,103670.0,0.48204]
[1737644940346,0.09645,103680.0,103670.0,0.462748]
[1737644940706,0.212841,103720.0,103670.0,0.462748]
[1737644940921,0.02,103740.0,103670.0,0.655649]
[1737644941124,0.02,103750.0,103670.0,0.462748]
[1737644941324,0.02,103690.0,103670.0,0.462748]
[1737644941534,0.19286,103710.0,103670.0,0.462748]
[1737644941662,0.096441,103690.0,103670.0,0.462748]
[1737644941865,0.09645,103680.0,103670.0,0.462748]
[1737644942067,0.02,103600.0,103530.0,0.0001448]
[1737644942269,0.21312,103570.0,103550.0,0.0201443]
[1737644942511,0.096581,103540.0,103530.0,0.0001448]
[1737644942709,0.240546,103540.0,103530.0,0.0001448]
[1737644942865,1.38995368,103600.0,103530.0,0.0001448]
[1737644942866,0.32,103580.0,103530.0,0.0001448]
[1737644943067,0.32,103580.0,103530.0,0.4829848]
[1737644943068,0.02,103570.0,103530.0,0.4829848]
[1737644943270,0.01729028,103570.0,103530.0,0.4829848]
[1737644943516,0.192934,103670.0,103540.0,0.46726852]
[1737644943757,0.1,103690.0,103540.0,0.46726852]
[1737644943758,0.192808,103730.0,103600.0,0.19305]
[1737644943888,0.1,103730.0,103600.0,0.48262]
[1737644944284,0.023,103650.0,103600.0,0.48262]
[1737644944497,0.192919,103670.0,103600.0,0.48262]
[1737644944696,0.05,103650.0,103600.0,0.48262]
[1737644944912,0.192987,103640.0,103600.0,0.48262]
[1737644945129,0.096515,103610.0,103600.0,0.47514066]
[1737644945341,0.096515,103610.0,103530.0,0.0001448]
[1737644945342,1.89617,103610.0,103530.0,0.0001448]
[1737644945552,0.096581,103540.0,103530.0,0.0001448]
[1737644945905,0.096581,103540.0,103530.0,0.4830748]
[1737644946107,0.3,103640.0,103530.0,0.44061704]
[1737644946309,0.107453,103630.0,103530.0,0.46061704]
[1737644946511,0.193132,103560.0,103530.0,0.46061704]
[1737644946731,0.096581,103540.0,103530.0,0.46061704]
[1737644946932,0.096581,103540.0,103460.0,0.02]
[1737644946933,0.193199,103520.0,103440.0,0.02966778]
[1737644947136,0.096683,103430.0,103400.0,0.0316558]
[1737644947299,0.193348,103440.0,103400.0,0.0316558]
[1737644947300,0.096702,103410.0,103400.0,0.0316558]
[1737644947506,0.096702,103410.0,103400.0,0.5151958]
[1737644947702,0.09673,103380.0,103370.0,0.03868]
[1737644947986,0.096749,103360.0,103260.0,0.096842]
[1737644948151,0.09673,103380.0,103370.0,0.48368]
[1737644948333,0.14673,103380.0,103370.0,0.45817343]
[1737644948534,0.09673,103380.0,103370.0,0.45817343]
[1737644948734,0.215657,103380.0,103370.0,0.41947743]
[1737644949034,0.09673,103380.0,103370.0,0.41947743]
[1737644949346,0.01999922,103420.0,103370.0,0.41947743]
[1737644949579,0.00406767,103450.0,103370.0,0.61294643]
[1737644949775,0.096616,103510.0,103460.0,0.096649]
[1737644949975,0.19318,103530.0,103460.0,0.54748]
[1737644950186,0.096562,103560.0,103500.0,0.096615]
[1737644950418,0.1,103620.0,103500.0,0.54729]
[1737644950593,0.41841529,103630.0,103510.0,0.00350939]
[1737644950594,0.096607,103520.0,103510.0,0.00350939]
[1737644950793,1.832306,103610.0,103500.0,0.54729]
[1737644950794,0.00029946,103570.0,103500.0,0.54729]
[1737644950994,0.497748,103560.0,103510.0,0.54725]
[1737644951168,0.00029946,103570.0,103530.0,0.193175]
[1737644951369,0.00029946,103570.0,103560.0,0.096562]
[1737644951572,1e-08,103570.0,103560.0,0.643572]
[1737644951773,0.392584,103620.0,103560.0,0.54992434]
[1737644951979,0.05,103650.0,103580.0,0.193075]
[1737644952179,0.192975,103640.0,103590.0,0.00291861]
[1737644952384,0.00030451,103680.0,103590.0,0.54978861]
[1737644952605,0.096525,103600.0,103590.0,0.54978861]
[1737644952780,0.192994,103630.0,103590.0,0.54978861]
[1737644952988,0.096525,103600.0,103590.0,0.54978861]
[1737644953185,0.096525,103600.0,103590.0,0.54687]
[1737644953412,0.19301,103630.0,103590.0,0.55051826]
[1737644953620,0.00030451,103680.0,103600.0,0.15]
[1737644953784,0.00030451,103680.0,103660.0,0.192938]
[1737644953984,0.00030451,103680.0,103670.0,0.09925744]
[1737644954187,0.038592,103760.0,103670.0,0.54929844]
[1737644954444,0.192771,103750.0,103670.0,0.74221744]
[1737644954645,0.0486478,103770.0,103680.0,0.212901]
[1737644954980,0.0100568,103770.0,103730.0,0.192802]
[1737644955176,0.0100568,103770.0,103760.0,0.096376]
[1737644955308,0.0100568,103770.0,103760.0,0.642456]
[1737644955518,0.00499991,103770.0,103760.0,0.662456]
[1737644955721,6e-05,103810.0,103800.0,0.096339]
[1737644955927,6e-05,103810.0,103800.0,0.642239]
[1737644956121,6e-05,103810.0,103800.0,0.662239]
[1737644956444,0.00030451,103840.0,103830.0,0.096311]
[1737644956622,0.00030451,103840.0,103830.0,0.54576]
[1737644956821,0.096282,103870.0,103830.0,0.834672]
[1737644957007,0.096292,103860.0,103830.0,0.54576]
[1737644957210,0.192464,103920.0,103830.0,0.54576]
[1737644957412,0.192567,103860.0,103830.0,0.54576]
[1737644957613,0.192513,103890.0,103830.0,0.54576]
[1737644957815,0.42612178,103930.0,103840.0,0.02]
[1737644957816,0.230977,103930.0,103840.0,0.02]
[1737644958098,0.0276358,103960.0,103840.0,0.56571]
[1737644958299,0.00482201,103900.0,103890.0,0.096255]
[1737644958473,0.00482201,103900.0,103890.0,0.661735]
[1737644958474,0.0003041,103900.0,103890.0,0.661735]
[1737644958671,0.0276358,103960.0,103900.0,0.02]
[1737644958871,0.096209,103940.0,103930.0,0.02]
[1737644959141,6e-05,103950.0,103930.0,0.449077]
[1737644959338,0.096209,103940.0,103930.0,0.449077]
[1737644959893,0.26334035,103890.0,103710.0,1.41995368]
[1737644960093,0.023,103860.0,103740.0,0.192786]
[1737644960294,0.192585,103850.0,103710.0,0.41841529]
[1737644960531,0.192585,103850.0,103750.0,0.61118129]
[1737644960697,0.192585,103850.0,103710.0,0.41841529]
[1737644960698,0.05,103850.0,103710.0,0.41841529]
[1737644960916,0.12419,103840.0,103680.0,0.02]
[1737644961144,0.289137,103760.0,103720.0,0.192822]
[1737644961335,0.192773,103750.0,103720.0,0.48197]
[1737644961544,0.192659,103810.0,103720.0,0.48197]
[1737644961818,0.192641,103820.0,103770.0,0.192727]
[1737644962027,0.00072915,103830.0,103770.0,0.385451]
[1737644962193,0.00072915,103830.0,103720.0,0.48197]
[1737644962194,0.42059808,103810.0,103720.0,0.48197]
[1737644962412,0.096399,103740.0,103700.0,0.09643]
[1737644962594,0.42059808,103810.0,103690.0,0.192864]
[1737644962799,0.176639,103800.0,103640.0,0.038581]
[1737644963037,0.192867,103700.0,103650.0,0.289427]
[1737644963244,0.19343615,103790.0,103650.0,0.48228]
[1737644963426,0.00072915,103790.0,103710.0,0.096416]
[1737644963748,0.05072915,103790.0,103650.0,0.48228]
[1737644963952,0.096413,103720.0,103710.0,0.48211]
[1737644964302,0.096413,103720.0,103600.0,0.038594]
[1737644964303,0.16463657,103720.0,103600.0,0.038594]
[1737644964668,0.97153839,103810.0,103560.0,0.0001446]
[1737644964669,0.42059808,103660.0,103610.0,0.00421783]
[1737644964830,0.80861286,103700.0,103610.0,0.00632674]
[1737644965007,0.096445,103690.0,103610.0,0.00632674]
[1737644965212,0.09645,103680.0,103670.0,0.0001422]
[1737644965410,0.178524,103680.0,103670.0,0.193166]
[1737644965612,0.096517,103610.0,103570.0,0.096552]
[1737644965835,0.40801578,103700.0,103580.0,0.193087]
[1737644966043,0.192942,103660.0,103530.0,0.02]
[1737644966197,0.385834,103680.0,103590.0,0.19305]
[1737644966393,0.05,103700.0,103610.0,1.5]
[1737644966605,0.192826,103720.0,103610.0,0.48258]
[1737644966810,0.096506,103620.0,103610.0,0.48258]
[1737644967008,0.146506,103620.0,103610.0,0.48258]
[1737644967217,0.096506,103620.0,103610.0,0.48258]
[1737644967427,0.140366,103620.0,103610.0,0.48258]
[1737644968033,0.02400095,103620.0,103610.0,0.48258]
[1737644968335,0.096506,103620.0,103610.0,0.386065]
[1737644968537,0.096506,103620.0,103610.0,0.36620595]
[1737644968952,0.096506,103620.0,103610.0,0.36591626]
[1737644969154,0.246506,103620.0,103610.0,0.28870426]
[1737644969381,0.096506,103620.0,103610.0,0.26940126]
[1737644969589,0.00055007,103710.0,103610.0,0.26940126]
[1737644969783,0.00055007,103710.0,103620.0,0.192997]
[1737644970009,0.096475,103660.0,103620.0,0.792213]
[1737644970238,0.192943,103660.0,103620.0,0.69571]
[1737644970437,0.192934,103670.0,103620.0,0.888722]
[1737644970657,0.05,103710.0,103620.0,0.69571]
[1737644970867,0.05,103770.0,103620.0,0.69571]
[1737644970868,0.19296,103650.0,103620.0,0.69571]
[1737644971086,0.096497,103630.0,103620.0,0.69571]
[1737644971287,0.05,103650.0,103620.0,0.69571]
[1737644971487,0.096497,103630.0,103620.0,0.69571]
[1737644971697,0.192953,103660.0,103620.0,0.69571]
[1737644971892,0.192976,103640.0,103620.0,0.69571]
[1737644972128,0.146497,103630.0,103620.0,0.69571]
[1737644972303,0.096497,103630.0,103620.0,0.69571]
[1737644972482,0.246497,103630.0,103620.0,0.69571]
[1737644972686,0.096497,103630.0,103620.0,0.69571]
[1737644973307,0.146497,103630.0,103620.0,0.69571]
[1737644973534,0.096497,103630.0,103620.0,0.69571]
[1737644973787,0.210397,103630.0,103620.0,1.21571]
[1737644974005,0.360397,103630.0,103620.0,1.21571]
[1737644974225,0.096497,103630.0,103620.0,1.21571]
[1737644974370,0.096497,103630.0,103620.0,1.138506]
[1737644974566,0.216712,103630.0,103620.0,0.05336842]
[1737644974767,0.05,103590.0,103560.0,0.0001446]
[1737644974971,0.096553,103570.0,103560.0,0.42794388]
[1737644975191,0.15,103530.0,103500.0,0.0001446]
[1737644975390,0.15,103530.0,103400.0,1.205072]
[1737644975391,0.193387,103420.0,103400.0,0.038672]
[1737644975724,0.197102,103410.0,103400.0,0.038672]
[1737644975930,0.465846,103410.0,103400.0,0.038672]
[1737644976096,0.096721,103390.0,103320.0,0.0276358]
[1737644976489,0.096721,103390.0,103380.0,0.48369]
[1737644976695,0.229212,103390.0,103380.0,0.48369]
[1737644976924,0.096721,103390.0,103380.0,0.48369]
[1737644977131,0.193255,103490.0,103390.0,0.193426]
[1737644977375,0.193255,103490.0,103410.0,0.096701]
[1737644977587,0.290005,103450.0,103390.0,0.48361]
[1737644977821,0.096693,103420.0,103410.0,0.48351]
[1737644978082,0.096674,103440.0,103410.0,0.48351]
[1737644978314,0.096653,103470.0,103430.0,0.386722]
[1737644978566,0.97153839,103550.0,103430.0,0.386722]
[1737644978567,0.51698908,103580.0,103440.0,0.15]
[1737644978834,0.09268,103580.0,103470.0,0.193291]
[1737644979063,0.42430908,103620.0,103470.0,0.48323]
[1737644979263,0.42430908,103660.0,103470.0,0.48323]
[1737644979479,0.192978,103640.0,103600.0,0.19305]
[1737644979723,0.192953,103660.0,103580.0,0.192788]
[1737644979973,0.038598,103730.0,103650.0,0.192956]
[1737644979974,0.192882,103690.0,103650.0,0.192956]
[1737644980227,0.04810956,103770.0,103620.0,0.193002]
[1737644980461,0.04810956,103770.0,103620.0,0.48282]
[1737644980462,0.192822,103730.0,103620.0,0.48282]
[1737644980742,0.192884,103690.0,103620.0,0.48282]
[1737644980975,0.14772724,103680.0,103650.0,0.096476]
[1737644981211,0.05127124,103680.0,103660.0,0.192929]
[1737644981480,0.05127124,103680.0,103660.0,0.48264]
[1737644981684,0.192817,103730.0,103690.0,0.289308]
[1737644981918,0.096432,103700.0,103690.0,0.4825]
[1737644982149,0.146432,103700.0,103690.0,0.4825]
[1737644982412,0.428704,103700.0,103690.0,0.4610571]
[1737644982649,0.192901,103680.0,103540.0,0.09264]
[1737644982889,0.275689,103670.0,103590.0,0.038607]
[1737644983158,0.096525,103600.0,103590.0,0.521277]
[1737644983423,0.096525,103600.0,103500.0,1.091336]
[1737644983424,0.193068,103590.0,103500.0,1.091336]
[1737644983663,0.096525,103600.0,103590.0,0.193047]
[1737644984174,0.05,103590.0,103480.0,0.19327]
[1737644984403,0.05,103590.0,103460.0,0.193305]
[1737644984404,0.05,103610.0,103550.0,0.289705]
[1737644984666,0.15,103590.0,103550.0,0.386148]
[1737644984894,0.096562,103560.0,103550.0,0.386148]
[1737644985112,0.193074,103590.0,103550.0,0.386148]
[1737644985380,0.096562,103560.0,103550.0,0.386148]
[1737644986586,0.20442086,103600.0,103550.0,0.386148]
[1737644986824,0.01135786,103600.0,103560.0,0.096562]
[1737644987052,0.193027,103620.0,103580.0,0.193079]
[1737644987053,0.19302,103620.0,103580.0,0.193079]
[1737644987295,0.038623,103670.0,103580.0,0.772363]
[1737644987544,0.05,103680.0,103620.0,0.193007]
[1737644987545,0.192901,103680.0,103620.0,0.193007]
[1737644987777,0.192882,103690.0,103640.0,0.192973]
[1737644988008,0.096428,103710.0,103680.0,0.096449]
[1737644988254,0.0003043,103730.0,103640.0,0.675497]
[1737644988255,0.289386,103670.0,103640.0,0.675497]
[1737644988500,0.0003043,103730.0,103610.0,0.095]
[1737644988501,0.096441,103690.0,103680.0,0.289434]
[1737644988981,0.21602,103690.0,103680.0,0.28914458]
[1737644989233,0.19305,103600.0,103550.0,0.0984]
[1737644989489,0.289606,103590.0,103560.0,0.09656]
[1737644989759,0.00029946,103620.0,103520.0,0.0984]
[1737644990008,0.096521,103610.0,103580.0,0.289626]
[1737644990239,0.00029946,103620.0,103580.0,0.772341]
[1737644990240,0.28983846,103620.0,103580.0,0.772341]
[1737644990478,0.05029946,103620.0,103490.0,0.0201426]
[1737644990711,0.096618,103500.0,103490.0,0.0001426]
[1737644990939,0.193218,103510.0,103490.0,0.0001426]
[1737644991188,0.146618,103500.0,103490.0,0.0001426]
[1737644991445,0.096618,103500.0,103490.0,0.4832626]
[1737644991921,0.146618,103500.0,103490.0,0.4832626]
[1737644992221,0.193218,103510.0,103490.0,0.4832626]
[1737644992398,0.19305,103600.0,103530.0,0.289763]
[1737644992637,0.193119,103570.0,103530.0,0.48295]
[1737644992872,0.096566,103560.0,103530.0,0.57954]
[1737644993087,0.00029946,103620.0,103540.0,0.196]
[1737644993088,0.24332246,103620.0,103540.0,0.196]
[1737644993294,0.19332446,103620.0,103550.0,0.0814]
[1737644993523,0.00029946,103620.0,103590.0,0.09653]
[1737644993734,0.00029946,103620.0,103600.0,0.0487]
[1737644993735,0.19331246,103620.0,103600.0,0.0487]
[1737644993954,0.096515,103610.0,103600.0,0.53132]
[1737644994167,0.09680746,103620.0,103600.0,0.53132]
[1737644994435,0.192959,103650.0,103600.0,0.724367]
[1737644994636,0.09386,103670.0,103600.0,0.53132]
[1737644994925,0.05,103660.0,103610.0,0.0828]
[1737644995128,0.096486,103650.0,103610.0,0.19931]
[1737644995336,0.08251213,103580.0,103490.0,0.0701426]
[1737644995552,0.08251213,103580.0,103400.0,0.1305]
[1737644995553,0.42430908,103530.0,103430.0,0.0477]
[1737644995752,0.42430908,103530.0,103490.0,0.48293]
[1737644995753,0.096618,103500.0,103490.0,0.48293]
[1737644995869,0.295928,103500.0,103490.0,0.48293]
[1737644996072,0.670004,103500.0,103490.0,0.28362]
[1737644996296,0.670004,103500.0,103430.0,0.0477]
[1737644996297,0.193345,103450.0,103430.0,0.0477]
[1737644996498,0.47306605,103530.0,103430.0,0.0477]
[1737644996742,0.193268,103490.0,103430.0,0.0477]
[1737644996946,0.05,103480.0,103430.0,0.0677]
[1737644997270,0.096674,103440.0,103430.0,0.0677]
[1737644997441,0.290003,103450.0,103430.0,0.551]
[1737644997797,0.19327,103490.0,103430.0,0.744363]
[1737644998008,0.243236,103500.0,103440.0,1.5]
[1737644998260,1.124692,103510.0,103440.0,1.5]
[1737644998261,0.05,103490.0,103440.0,0.48337]
[1737644998549,0.243236,103500.0,103440.0,0.48337]
[1737644998785,1.124692,103510.0,103440.0,0.48337]
[1737644998786,0.243288,103480.0,103440.0,0.48337]
[1737644999024,1.124692,103510.0,103480.0,0.096633]
[1737644999319,0.0983591,103590.0,103480.0,0.096633]
[1737644999320,0.05,103570.0,103490.0,0.193253]
[1737644999582,0.04866396,103660.0,103550.0,0.079]
[1737644999848,0.243107,103570.0,103550.0,0.56186]
[1737645000070,0.096562,103560.0,103550.0,0.48286]
[1737645000280,0.096562,103560.0,103490.0,0.1268]
[1737645000281,0.05,103520.0,103490.0,0.05269572]
[1737645000499,0.05,103510.0,103430.0,0.02]
[1737645000739,0.05,103480.0,103430.0,0.02]
[1737645000943,0.119674,103440.0,103430.0,0.50323]
[1737645001153,0.119674,103440.0,103430.0,0.445219]
[1737645001361,0.096674,103440.0,103430.0,0.445219]
[1737645001562,0.223857,103440.0,103430.0,0.387208]
[1737645001802,0.431527,103440.0,103430.0,0.363208]
[1737645002014,0.45496007,103440.0,103430.0,0.363208]
[1737645002226,0.246721,103390.0,103380.0,0.0002049]
[1737645002449,0.246721,103390.0,103320.0,0.0276358]
[1737645002450,0.246777,103330.0,103320.0,0.0276358]
[1737645002660,0.09684,103270.0,103260.0,0.038737]
[1737645002855,0.193629,103290.0,103260.0,0.038737]
[1737645003060,0.09684,103270.0,103260.0,0.038737]
[1737645003268,0.09684,103270.0,103260.0,0.522877]
[1737645003480,0.02,103350.0,103260.0,0.522877]
[1737645003714,0.05767,103340.0,103290.0,0.193629]
[1737645003918,0.05767,103340.0,103260.0,0.522877]
[1737645003919,0.00077707,103440.0,103310.0,0.193592]
[1737645004068,0.19866427,103450.0,103400.0,0.193418]
[1737645004270,0.193352,103440.0,103420.0,0.0763]
[1737645004477,0.05,103500.0,103420.0,0.57444273]
[1737645004653,0.193331,103450.0,103420.0,0.57444273]
[1737645005022,0.193292,103470.0,103420.0,0.55976]
[1737645005201,0.096665,103450.0,103420.0,0.55976]
[1737645005399,0.193345,103450.0,103420.0,0.55976]
[1737645005619,0.193274,103480.0,103420.0,0.55976]
[1737645005620,0.193363,103440.0,103420.0,0.55976]
[1737645005817,0.096683,103430.0,103420.0,0.55976]
[1737645006017,0.05,103480.0,103420.0,0.55976]
[1737645006245,0.038696,103490.0,103420.0,0.55976]
[1737645006246,0.193363,103440.0,103420.0,0.55976]
[1737645006508,0.246683,103430.0,103420.0,0.48346]
[1737645006719,0.15,103430.0,103420.0,0.48346]
[1737645006932,0.11943612,103520.0,103420.0,1.98346]
[1737645007115,0.096683,103430.0,103420.0,0.48346]
[1737645007321,0.193331,103450.0,103420.0,0.48346]
[1737645007592,0.193238,103500.0,103420.0,0.49814273]
[1737645007802,0.096683,103430.0,103420.0,0.48346]
[1737645008010,0.096683,103430.0,103420.0,0.462121]
[1737645008230,0.1935,103360.0,103320.0,0.0773]
[1737645008434,0.096777,103330.0,103320.0,0.0773]
[1737645008607,0.193535,103340.0,103270.0,0.0816]
[1737645008878,0.193523,103350.0,103320.0,0.48391]
[1737645009048,0.193482,103370.0,103330.0,0.01468273]
[1737645009264,0.42394925,103460.0,103340.0,0.01468273]
[1737645009265,0.193377,103430.0,103340.0,0.01468273]
[1737645009476,0.096742,103370.0,103340.0,0.49852273]
[1737645009609,0.290198,103380.0,103340.0,0.49852273]
[1737645009815,0.193409,103410.0,103360.0,0.01468273]
[1737645009999,0.193377,103430.0,103340.0,0.48384]
[1737645010000,0.096754,103360.0,103340.0,0.48384]
[1737645010201,0.096758,103350.0,103340.0,0.48384]
[1737645010405,0.362843,103350.0,103340.0,0.48384]
[1737645010601,0.34847485,103350.0,103270.0,0.1299]
[1737645010844,0.647924,103340.0,103270.0,0.1299]
[1737645011046,0.096824,103280.0,103270.0,0.0816]
[1737645011253,0.386541,103280.0,103270.0,0.56574]
[1737645011450,0.386541,103280.0,103240.0,6e-05]
[1737645011451,0.096852,103250.0,103240.0,6e-05]
[1737645011654,0.193667,103270.0,103240.0,6e-05]
[1737645011827,0.193681,103270.0,103250.0,0.00343526]
[1737645012202,0.096842,103260.0,103250.0,0.00343526]
[1737645012375,0.201682,103260.0,103250.0,0.48769526]
[1737645012586,0.246842,103260.0,103250.0,0.51443161]
[1737645012786,0.246842,103260.0,103250.0,0.48769526]
[1737645013218,0.00096891,103320.0,103280.0,0.01468273]
[1737645013433,0.00096891,103320.0,103310.0,0.14788273]
[1737645013636,0.290126,103410.0,103360.0,0.146746]
[1737645013844,0.04890218,103490.0,103380.0,0.01468273]
[1737645014056,0.193292,103470.0,103400.0,0.01468273]
[1737645014213,0.193292,103470.0,103380.0,0.40626673]
[1737645014214,0.096721,103390.0,103380.0,0.40626673]
[1737645014370,0.228602,103390.0,103380.0,0.01894721]
[1737645014576,0.096786,103320.0,103310.0,0.008614]
[1737645014971,0.02,103380.0,103310.0,0.589368]
[1737645014972,0.387066,103350.0,103310.0,0.589368]
[1737645015249,0.15852329,103420.0,103310.0,0.589368]
[1737645015250,0.13852329,103420.0,103310.0,0.492574]
[1737645015453,0.02,103430.0,103330.0,0.096773]
[1737645015454,0.096683,103430.0,103330.0,0.096773]
[1737645015653,0.04805956,103450.0,103330.0,0.48389]
[1737645015915,0.193511,103360.0,103330.0,0.48389]
[1737645016068,0.117,103470.0,103340.0,0.05]
[1737645016270,0.193451,103390.0,103330.0,0.48389]
[1737645016617,0.096758,103350.0,103340.0,0.48384]
[1737645016979,1.39548764,103440.0,103340.0,0.48384]
[1737645016980,0.193484,103370.0,103340.0,0.48384]
[1737645017180,0.193404,103410.0,103340.0,0.48384]
[1737645017382,0.3,103440.0,103340.0,0.52884]
[1737645017383,0.096737,103380.0,103340.0,0.52884]
[1737645017701,0.097,103470.0,103390.0,0.0755]
[1737645017702,0.04899306,103470.0,103390.0,0.0755]
[1737645017901,0.0482098,103500.0,103400.0,0.05]
[1737645018108,0.0482098,103500.0,103400.0,0.48856]
[1737645018453,0.193312,103460.0,103430.0,0.095]
[1737645018588,0.193313,103460.0,103440.0,0.05]
[1737645018794,0.386637,103460.0,103440.0,0.391696]
[1737645019013,0.096665,103450.0,103440.0,0.391696]
[1737645019821,0.096628,103490.0,103460.0,0.096654]
[1737645020026,0.08486072,103540.0,103490.0,0.19325]
[1737645020242,0.08486072,103540.0,103530.0,0.09659]
[1737645020394,0.038658,103580.0,103540.0,0.0772]
[1737645020602,0.04865941,103590.0,103540.0,0.66178]
[1737645020796,0.27150782,103580.0,103540.0,0.66178]
[1737645021005,0.02949333,103570.0,103540.0,0.66178]
[1737645021201,0.07797996,103570.0,103560.0,0.01746184]
[1737645021445,0.08444055,103620.0,103560.0,0.58449]
[1737645021691,0.02950582,103610.0,103570.0,0.193104]
[1737645021943,0.02950582,103610.0,103580.0,0.486426]
[1737645022225,0.08444055,103620.0,103600.0,0.096523]
[1737645022457,0.192957,103650.0,103600.0,0.5843]
[1737645022699,0.096489,103640.0,103600.0,0.5843]
[1737645022915,0.01295975,103660.0,103600.0,0.680825]
[1737645023131,0.096498,103630.0,103600.0,0.5843]
[1737645023331,0.01295975,103660.0,103520.0,0.01885849]
[1737645023543,0.01295975,103660.0,103310.0,0.008704]
[1737645023544,0.3,103380.0,103310.0,0.008704]
[1737645023750,0.023,103340.0,103310.0,0.008614]
[1737645023949,0.3,103380.0,103310.0,0.008614]